bitfinex/quotes_ETHUSD_20250223
["timestamp","ask_amount","ask_price","bid_price","bid_amount"]
[1740273496228,0.8237,2772.6,2772.2,3.86313]
[1740273497591,0.8237,2772.6,2772.2,0.256]
[1740273497792,4.43043,2772.6,2772.1,4.39037914]
[1740273498118,0.55,2772.4,2772.1,4.39037914]
[1740273498327,4.15724,2772.2,2772.1,4.39037914]
[1740273498529,0.825,2772.1,2771.8,0.256]
[1740273498728,4.43245,2772.1,2771.8,0.256]
[1740273499097,0.825,2772.1,2771.8,0.256]
[1740273500816,3.60757,2772.0,2771.6,0.256]
[1740273501017,3.60757,2772.0,2771.5,3.86413]
[1740273501336,6.065,2772.1,2771.6,3.60795]
[1740273501898,4.41616,2771.9,2771.5,0.256]
[1740273504610,4.41616,2771.9,2771.6,3.60802]
[1740273504611,0.8085,2771.9,2771.6,3.60802]
[1740273505129,0.8085,2771.9,2771.6,3.60794]
[1740273510922,6.0485,2772.1,2771.9,3.60756]
[1740273511236,6.0485,2772.1,2771.7,3.60777]
[1740273511941,6.0485,2772.1,2771.8,3.60769]
[1740273512236,6.0485,2772.1,2771.7,3.60777]
[1740273514836,6.0485,2772.1,2771.9,0.73786393]
[1740273518137,5.24,2772.1,2772.0,3.6075]
[1740273519861,5.24,2772.1,2772.0,4.63599739]
[1740273520012,0.7696,2772.8,2772.1,3.60737]
[1740273520210,0.7696,2772.8,2772.2,3.60724]
[1740273520433,0.7696,2772.7,2772.2,3.60724]
[1740273521433,0.7696,2772.7,2772.3,3.60708]
[1740273522546,0.7696,2772.7,2772.6,3.60672]
[1740273522744,0.7696,2772.7,2772.4,3.60698]
[1740273527316,0.7696,2772.7,2772.5,3.60672]
[1740273527522,6.0096,2772.9,2772.6,3.60659]
[1740273529164,6.0096,2772.9,2772.5,3.60672]
[1740273529370,6.0096,2772.9,2772.6,3.6067]
[1740273529515,6.0096,2772.9,2772.4,0.2332]
[1740273529721,6.0096,2772.9,2772.5,3.6068]
[1740273530251,6.0096,2772.9,2772.6,0.7130963]
[1740273531049,9.61594,2772.9,2772.6,0.7130963]
[1740273531252,6.0096,2772.9,2772.6,0.7130963]
[1740273534657,9.61593,2772.9,2772.6,0.7130963]
[1740273536449,6.0096,2772.9,2772.6,0.7130963]
[1740273536654,6.0096,2772.9,2772.8,3.60646]
[1740273537252,6.0096,2772.9,2772.7,3.60659]
[1740273537448,5.24,2772.9,2772.8,3.60646]
[1740273538039,0.7798,2773.1,2772.8,0.79261463]
[1740273538249,3.35136791,2774.4,2772.8,0.79261463]
[1740273538250,0.7798,2773.3,2772.9,0.2332]
[1740273538452,0.7798,2773.5,2773.2,3.60582]
[1740273538656,6.0198,2773.5,2772.9,0.2332]
[1740273538860,9.62545,2773.5,2772.9,3.83947]
[1740273539055,9.62545,2773.5,2773.0,3.60617]
[1740273539439,9.62543,2773.5,2773.0,3.60617]
[1740273540131,9.62543,2773.5,2772.8,3.60634]
[1740273540335,3.60574,2773.4,2772.8,7.21273]
[1740273540662,9.62543,2773.5,2772.8,3.60634]
[1740273540869,1.3298,2773.4,2772.7,0.2332]
[1740273541052,0.7798,2773.0,2772.6,4.5758063]
[1740273541246,0.7798,2773.0,2772.7,3.60655]
[1740273541451,0.7798,2773.0,2772.6,3.86271]
[1740273541650,4.38651,2773.3,2772.8,3.60643]
[1740273541868,0.7807,2773.3,2772.9,3.60632]
[1740273542170,0.7807,2773.3,2773.0,3.60615]
[1740273542777,0.7807,2773.3,2772.9,7.21252]
[1740273542957,0.7807,2773.3,2773.0,4.350772]
[1740273544673,0.7807,2773.3,2773.1,3.60605]
[1740273545662,5.24,2773.5,2773.0,4.09593991]
[1740273545863,5.24,2773.5,2773.4,3.60568]
[1740273546175,0.7807,2773.7,2773.4,3.60568]
[1740273547278,0.7807,2773.7,2773.3,3.60581]
[1740273547981,0.7807,2773.7,2772.8,1.00164029]
[1740273548150,0.7807,2773.6,2772.8,1.23484029]
[1740273548351,4.38612,2773.6,2772.9,3.60633]
[1740273548575,4.38612,2773.6,2773.1,3.60601]
[1740273549081,0.7807,2773.6,2773.1,3.60601]
[1740273549285,0.7807,2773.6,2773.3,3.60575]
[1740273549950,0.7807,2773.6,2773.4,3.60567]
[1740273550151,0.7807,2773.6,2773.3,3.60575]
[1740273550152,0.7807,2773.6,2773.3,7.21149]
[1740273550392,5.24,2773.7,2773.3,3.60574]
[1740273550393,9.62599,2773.7,2773.3,3.60574]
[1740273550673,6.0207,2773.7,2773.3,3.60574]
[1740273551749,6.0207,2773.7,2773.2,0.2332]
[1740273551750,9.62599,2773.7,2773.2,0.2332]
[1740273551955,0.7542,2773.4,2773.0,3.60618]
[1740273554100,4.35988,2773.4,2772.9,3.60625]
[1740273554384,3.606,2773.2,2772.9,0.256]
[1740273554562,4.35994,2773.4,2772.9,3.86231]
[1740273555468,9.59994,2773.4,2772.9,3.86231]
[1740273555790,5.9942,2773.4,2772.9,3.86231]
[1740273556093,5.9942,2773.4,2772.9,4.32089645]
[1740273556383,5.9942,2773.4,2773.1,3.60604]
[1740273556578,5.9942,2773.4,2773.1,3.606]
[1740273556775,5.9942,2773.4,2773.1,7.212]
[1740273556974,5.24,2773.4,2773.2,3.60583]
[1740273557179,5.24,2773.4,2773.1,3.606]
[1740273558993,5.24,2773.4,2773.0,3.60617]
[1740273560062,5.24,2773.4,2773.1,3.60605]
[1740273561401,3.60557,2773.5,2773.1,3.60605]
[1740273562446,3.60557,2773.5,2772.9,3.86225]
[1740273562736,3.60557,2773.5,2773.0,3.60619]
[1740273563930,6.0617,2773.6,2773.1,3.60604]
[1740273564129,6.0617,2773.6,2773.2,3.83906]
[1740273564335,9.66713,2773.6,2773.2,3.83906]
[1740273565034,6.0617,2773.6,2773.2,0.2332]
[1740273565237,6.0617,2773.6,2773.4,3.60565]
[1740273566042,6.0617,2773.6,2773.2,4.19758679]
[1740273566444,6.0617,2773.6,2773.2,3.96438679]
[1740273566648,9.66712,2773.6,2773.1,3.606]
[1740273566948,9.66712,2773.6,2773.0,3.8393]
[1740273567116,4.42747,2773.4,2772.9,0.256]
[1740273567316,3.6059,2773.3,2772.9,0.256]
[1740273567518,3.6059,2773.3,2772.9,1.09855245]
[1740273567749,0.8217,2773.4,2772.9,4.70482245]
[1740273567935,0.8217,2773.4,2773.0,3.60619]
[1740273570262,0.8217,2773.4,2772.9,0.84255245]
[1740273570417,4.4274,2773.4,2772.9,4.44886245]
[1740273571056,0.8217,2773.4,2772.8,0.256]
[1740273571253,4.42776,2773.2,2772.6,3.88008219]
[1740273571444,0.8029,2772.9,2772.5,0.256]
[1740273571758,0.8029,2772.9,2772.6,3.60662]
[1740273571952,0.8029,2772.9,2772.7,3.992842]
[1740273572530,1.3529,2773.2,2772.8,3.60646]
[1740273572726,4.95886,2773.2,2772.8,3.60646]
[1740273572958,0.8029,2773.2,2772.8,3.60646]
[1740273573460,0.8029,2773.2,2772.7,0.386262]
[1740273573621,0.8029,2773.2,2772.8,0.4226092]
[1740273573821,3.60613,2773.1,2772.6,3.60663]
[1740273574466,3.60613,2773.1,2772.7,3.60658]
[1740273575330,4.40917,2773.0,2772.5,4.12789861]
[1740273575555,3.60633,2772.9,2772.4,0.256]
[1740273575861,0.8029,2772.7,2772.2,3.84036]
[1740273576062,4.40955,2772.7,2772.3,1.27517279]
[1740273576433,3.6068,2772.6,2772.3,1.01917279]
[1740273576634,0.8029,2772.7,2771.9,3.60756]
[1740273576845,4.40122,2772.3,2771.7,3.84102]
[1740273577030,4.40122,2772.3,2771.8,4.13779944]
[1740273577657,4.40113,2772.3,2771.5,6.19003783]
[1740273577858,3.60725,2772.2,2771.7,3.60788]
[1740273578063,3.60725,2772.2,2771.8,0.360788]
[1740273578276,3.60738,2772.1,2771.8,0.360788]
[1740273578464,3.60738,2772.1,2771.5,10.05506783]
[1740273578668,3.60738,2772.1,2771.6,3.60792]
[1740273578841,9.6412,2772.3,2771.5,10.05506783]
[1740273579032,3.60724,2772.2,2771.7,3.60787]
[1740273579232,3.60738,2772.1,2771.7,1.36629378]
[1740273579545,3.60738,2772.1,2771.7,4.97414378]
[1740273579745,3.60725,2772.2,2771.7,8.58195378]
[1740273580071,6.034,2772.3,2771.7,8.58195378]
[1740273580072,6.034,2772.3,2772.0,3.60748]
[1740273580272,6.034,2772.3,2771.7,1.36629378]
[1740273580273,6.034,2772.3,2772.1,3.6073]
[1740273580585,6.034,2772.3,2771.7,1.36629378]
[1740273580586,6.034,2772.3,2771.9,7.21516]
[1740273580733,6.034,2772.3,2772.1,3.60736]
[1740273581949,5.24,2772.3,2772.2,3.60724]
[1740273582350,5.24,2772.3,2772.1,3.60736]
[1740273582779,5.24,2772.3,2772.2,3.60724]
[1740273582960,0.794,2772.7,2772.2,0.7936056]
[1740273583164,0.794,2772.7,2772.3,3.607]
[1740273584554,3.60672,2772.6,2772.2,0.7936056]
[1740273584977,3.60672,2772.6,2772.1,3.60728]
[1740273585685,3.60691,2772.5,2772.0,4.32891492]
[1740273585866,3.60691,2772.5,2772.0,4.32889492]
[1740273586061,3.60691,2772.5,2772.0,0.72142492]
[1740273586389,3.60707,2772.4,2772.0,0.72142492]
[1740273586590,3.60707,2772.4,2772.0,1.5127862]
[1740273587356,3.60707,2772.4,2772.0,1.7697862]
[1740273587578,3.60691,2772.5,2772.0,1.7697862]
[1740273587778,4.40098,2772.4,2772.0,0.257]
[1740273588177,4.40098,2772.4,2772.0,3.86449]
[1740273589090,4.40098,2772.4,2772.0,0.257]
[1740273589291,3.60711,2772.3,2772.0,0.257]
[1740273590266,4.40098,2772.4,2772.0,0.257]
[1740273590471,3.60748,2772.1,2771.8,0.257]
[1740273590672,0.55,2772.3,2771.8,0.257]
[1740273590866,3.60727,2772.2,2771.8,0.257]
[1740273591198,7.21459,2772.2,2771.8,0.257]
[1740273591486,3.60727,2772.2,2771.8,0.257]
[1740273593582,3.60727,2772.2,2771.8,3.86474]
[1740273593785,3.60727,2772.2,2771.8,1.10151536]
[1740273594763,3.60727,2772.2,2771.8,0.84451536]
[1740273596499,3.60727,2772.2,2771.8,4.45225536]
[1740273596999,3.60727,2772.2,2771.8,0.84451536]
[1740273597194,7.21459,2772.2,2771.8,0.84451536]
[1740273597401,3.60727,2772.2,2771.8,0.84451536]
[1740273601124,0.55,2772.3,2771.8,4.45218536]
[1740273601319,4.15714,2772.3,2771.9,0.83169654]
[1740273601887,4.15714,2772.3,2771.8,3.60767]
[1740273602086,3.60725,2772.2,2771.7,3.86486]
[1740273602286,7.21458,2772.2,2771.7,3.86486]
[1740273602488,3.60725,2772.2,2771.7,3.86486]
[1740273602688,3.60725,2772.2,2771.7,5.30509714]
[1740273603107,3.60731,2772.2,2771.7,5.30509714]
[1740273603307,3.60786,2771.8,2771.5,2.60546992]
[1740273603609,3.60757,2772.0,2771.5,6.21360992]
[1740273604406,0.797,2772.1,2771.5,6.21360992]
[1740273604607,0.797,2772.1,2771.8,3.60775]
[1740273604814,0.797,2772.1,2771.6,3.60789]
[1740273605382,0.797,2772.1,2771.7,3.60785]
[1740273606684,0.797,2772.1,2771.8,3.60773]
[1740273606884,4.40438,2772.1,2771.6,3.60799]
[1740273607109,4.40438,2772.1,2771.6,5.14943451]
[1740273607340,0.797,2772.1,2771.7,3.6078]
[1740273610004,3.60727,2772.2,2771.7,3.6078]
[1740273610189,3.60727,2772.2,2771.8,3.60772]
[1740273610602,6.587,2772.3,2771.9,3.60762]
[1740273611724,10.19417,2772.3,2771.9,3.60762]
[1740273612020,3.60724,2772.2,2771.8,3.84095]
[1740273612226,3.60724,2772.2,2771.8,3.60775]
[1740273612588,10.19417,2772.3,2771.6,3.6079]
[1740273612589,0.7974,2772.0,2771.6,3.6079]
[1740273613527,4.4049,2772.0,2771.6,3.6079]
[1740273614120,0.7974,2772.0,2771.5,6.21360992]
[1740273614323,3.60764,2771.9,2771.5,6.21360992]
[1740273614724,5.79,2772.3,2771.5,2.60546992]
[1740273614725,0.7974,2771.7,2771.5,2.60546992]
[1740273614927,4.40533,2771.7,2771.3,0.257]
[1740273615426,0.7974,2771.7,2771.3,0.257]
[1740273615603,0.7974,2771.7,2771.4,3.60826]
[1740273616647,0.7974,2771.7,2771.6,3.60802]
[1740273616794,3.60745,2772.1,2771.6,3.60802]
[1740273616795,1.3235,2772.0,2771.6,3.60802]
[1740273617828,6.5635,2772.0,2771.6,3.60802]
[1740273619837,10.17108,2772.0,2771.5,0.2332]
[1740273620429,10.17108,2772.0,2771.5,3.84134]
[1740273621334,13.77868,2772.0,2771.5,3.84134]
[1740273621538,3.60763,2771.9,2771.4,3.60826]
[1740273621754,3.60776,2771.8,2771.3,4.82132138]
[1740273622039,3.60776,2771.8,2771.3,6.02722096]
[1740273622754,0.8129,2771.7,2771.3,5.79402096]
[1740273624538,0.8129,2771.7,2771.3,2.18563096]
[1740273624740,4.42086,2771.7,2771.3,2.18563096]
[1740273628443,0.8129,2771.7,2771.3,5.79398096]
[1740273628610,0.8129,2771.7,2771.4,0.60716975]
[1740273628805,0.8129,2771.7,2771.6,3.60802]
[1740273629042,0.8129,2771.9,2771.6,3.60795]
[1740273629733,4.42058,2771.9,2771.4,4.19173766]
[1740273630645,4.42058,2771.9,2771.4,3.84143]
[1740273630832,3.60778,2771.8,2771.3,4.58814138]
[1740273631242,3.60803,2771.6,2771.3,0.72273138]
[1740273631442,3.60803,2771.6,2770.7,3.35136791]
[1740273631443,3.6087,2771.1,2770.8,0.2332]
[1740273631741,0.7921,2771.1,2770.8,0.257]
[1740273632241,0.7921,2771.1,2770.8,1.47476429]
[1740273632441,0.07308183,2771.0,2770.8,1.47476429]
[1740273632649,0.07308183,2771.0,2770.8,5.08372429]
[1740273632826,0.07308183,2771.0,2770.9,3.60893]
[1740273633012,0.07308183,2771.0,2770.9,3.94603728]
[1740273633213,0.7921,2771.3,2770.9,3.94603728]
[1740273633415,0.07181011,2771.0,2770.9,4.55893672]
[1740273633614,0.7921,2771.3,2770.9,4.55893672]
[1740273633811,0.07181011,2771.0,2770.9,4.55893672]
[1740273634338,0.7921,2771.3,2770.9,4.55893672]
[1740273634538,0.07196544,2771.2,2771.0,3.60875]
[1740273634745,0.7921,2771.3,2771.0,3.60875]
[1740273634939,0.07196544,2771.2,2771.1,3.6086]
[1740273635252,0.7921,2771.3,2771.0,3.60871]
[1740273635449,0.07196544,2771.2,2771.1,3.60867]
[1740273636026,0.7921,2771.3,2771.1,3.60867]
[1740273636240,0.07196544,2771.2,2771.1,3.60867]
[1740273636626,6.0695,2771.5,2771.1,3.60867]
[1740273636830,0.07196544,2771.2,2771.1,3.60867]
[1740273637039,6.0695,2771.5,2771.1,3.60867]
[1740273637243,0.07196544,2771.2,2771.1,3.60867]
[1740273637442,6.0695,2771.5,2771.1,3.60867]
[1740273637652,0.07196544,2771.2,2771.1,3.60867]
[1740273637819,6.0695,2771.5,2771.1,3.60867]
[1740273638019,0.07196544,2771.2,2771.1,3.60867]
[1740273638215,6.0695,2771.5,2771.1,3.60867]
[1740273638443,0.07196544,2771.2,2771.1,3.60867]
[1740273638642,6.0695,2771.5,2771.1,3.60867]
[1740273638844,0.07196544,2771.2,2771.0,3.84191]
[1740273639112,6.0695,2771.5,2771.1,3.60863]
[1740273639342,6.0695,2771.5,2771.1,3.60861]
[1740273639553,0.07212075,2771.4,2771.0,3.60871]
[1740273640455,0.07212075,2771.4,2770.9,4.22178944]
[1740273640754,3.68048075,2771.4,2770.8,3.60898]
[1740273640954,0.8295,2771.3,2770.8,3.60898]
[1740273641119,0.07196544,2771.2,2770.8,3.60898]
[1740273641319,4.43798,2771.3,2770.8,3.60898]
[1740273641520,0.07196544,2771.2,2770.8,3.60898]
[1740273641719,4.43798,2771.3,2770.8,3.60898]
[1740273641955,0.07196544,2771.2,2770.8,3.60898]
[1740273642155,4.43798,2771.3,2770.8,3.60898]
[1740273642456,0.07196544,2771.2,2770.8,3.60898]
[1740273642756,4.43798,2771.3,2770.8,3.60898]
[1740273642960,0.07180948,2771.2,2770.8,3.60898]
[1740273643248,0.8295,2771.3,2770.8,3.60898]
[1740273643550,0.07180948,2771.2,2770.9,0.33682445]
[1740273643754,0.8295,2771.3,2770.9,0.33682445]
[1740273643954,0.07180948,2771.2,2770.9,0.33682445]
[1740273644156,0.8295,2771.3,2770.9,0.33682445]
[1740273644353,0.07180948,2771.2,2770.8,3.60898]
[1740273644541,0.8295,2771.3,2770.7,0.96519287]
[1740273644746,0.07180948,2771.2,2770.7,4.57437287]
[1740273644947,0.07180948,2771.2,2770.7,5.41711411]
[1740273645144,3.68043948,2771.2,2770.6,0.26847164]
[1740273645460,0.8295,2771.1,2770.8,0.59386992]
[1740273645618,4.43823,2771.1,2770.8,0.59386992]
[1740273645823,0.07154184,2771.0,2770.8,0.59386992]
[1740273646250,0.07154184,2771.0,2770.8,0.257]
[1740273646762,0.07154184,2771.0,2770.7,0.33686992]
[1740273647129,0.07154184,2771.0,2770.7,3.94603992]
[1740273647661,0.07154184,2771.0,2770.8,0.33686992]
[1740273649465,0.07154184,2771.0,2770.7,3.60911]
[1740273649642,0.07154184,2771.0,2770.7,4.45483823]
[1740273651742,0.07154184,2771.0,2770.8,0.3368221]
[1740273653344,0.07154184,2771.0,2770.6,1.23880232]
[1740273654660,0.07154184,2771.0,2770.7,0.3368745]
[1740273655236,3.68041184,2771.0,2770.7,0.3368745]
[1740273655439,0.7855,2770.8,2770.7,0.3368745]
[1740273655641,4.94456,2770.8,2770.7,0.3368745]
[1740273655837,0.55,2770.7,2770.0,3.60836791]
[1740273656063,0.55,2770.7,2770.2,3.60975]
[1740273656280,0.07101669,2770.6,2770.3,3.60961]
[1740273656481,0.07101669,2770.6,2770.4,3.60958]
[1740273656758,0.07101669,2770.6,2770.3,4.331636]
[1740273657285,0.07101669,2770.6,2770.3,0.721936]
[1740273657487,0.07101669,2770.6,2770.3,4.331646]
[1740273657657,0.07101669,2770.6,2770.4,3.60954]
[1740273657856,0.07101669,2770.6,2770.3,4.331646]
[1740273658857,0.07101669,2770.6,2770.3,7.941286]
[1740273659212,0.07101669,2770.6,2770.3,4.331576]
[1740273659393,0.07101669,2770.6,2770.3,3.60964]
[1740273660686,0.07101669,2770.6,2770.1,0.72049473]
[1740273660903,4.36468,2770.5,2770.2,0.257]
[1740273661382,0.06941582,2770.4,2770.2,0.257]
[1740273661781,0.06941582,2770.4,2770.1,0.72049473]
[1740273661978,0.06941582,2770.4,2770.0,0.257]
[1740273662192,0.7552,2770.2,2769.7,0.2332]
[1740273662496,0.06918268,2770.1,2769.8,0.257]
[1740273663297,0.06918268,2770.1,2769.7,0.73502462]
[1740273663667,0.06918268,2770.1,2769.8,3.61036]
[1740273663887,0.06918268,2770.1,2769.9,3.61018]
[1740273664089,0.06918268,2770.1,2769.8,3.61036]
[1740273664565,0.06918268,2770.1,2769.8,3.61024]
[1740273665400,0.06918268,2770.1,2769.9,3.61022]
[1740273665579,0.06918268,2770.1,2770.0,7.55568991]
[1740273668571,0.7552,2770.5,2770.0,7.55568991]
[1740273668897,0.06828634,2770.4,2770.2,3.60982]
[1740273669080,0.06828634,2770.4,2770.0,7.55562991]
[1740273669275,0.06828634,2770.4,2770.1,3.60988]
[1740273669780,0.06828634,2770.4,2770.0,7.32242991]
[1740273670078,0.7552,2770.3,2769.8,7.22057]
[1740273670399,0.82338632,2770.3,2770.1,3.60992]
[1740273671206,0.82338632,2770.3,2770.2,3.60984]
[1740273671371,0.06818632,2770.3,2770.2,3.60984]
[1740273671772,0.7552,2770.5,2770.3,3.60969]
[1740273671967,0.7552,2770.5,2770.3,3.60963]
[1740273672212,0.0681632,2770.4,2770.3,3.60963]
[1740273673066,0.0681632,2770.4,2770.2,3.60983]
[1740273673266,0.0681632,2770.4,2770.3,3.60971]
[1740273673787,0.0681632,2770.4,2770.3,4.331664]
[1740273674181,6.0303,2770.7,2770.3,4.331664]
[1740273674406,0.7903,2770.7,2770.1,3.60994]
[1740273674574,4.3995,2770.7,2770.1,7.21982]
[1740273674942,0.06840739,2770.6,2770.2,3.60982]
[1740273675609,0.06840739,2770.6,2770.1,3.60988]
[1740273676103,3.67774739,2770.6,2770.1,3.60988]
[1740273676278,0.7903,2770.5,2770.1,3.60988]
[1740273676485,0.85862968,2770.5,2770.1,3.60988]
[1740273677207,0.85862968,2770.5,2770.3,7.21935]
[1740273677401,0.85862968,2770.5,2770.3,3.60965]
[1740273678474,0.06832968,2770.5,2770.3,3.60965]
[1740273678672,0.7832,2770.7,2770.3,3.60965]
[1740273678909,0.06824082,2770.4,2770.3,3.60965]
[1740273679206,0.7832,2770.7,2770.3,3.60965]
[1740273679776,0.06839623,2770.6,2770.3,3.60965]
[1740273680179,0.06839623,2770.6,2770.3,7.2193]
[1740273680379,0.06839623,2770.6,2770.3,3.60965]
[1740273681411,0.06839623,2770.6,2770.4,3.60957]
[1740273681785,0.06839623,2770.6,2770.3,3.60965]
[1740273682310,0.06839623,2770.6,2770.3,7.21928]
[1740273682487,0.06839623,2770.6,2770.3,3.60963]
[1740273684387,0.06839623,2770.6,2770.2,3.88424667]
[1740273685210,3.60951,2770.5,2770.1,0.72956765]
[1740273685410,0.7832,2770.5,2770.1,0.72956765]
[1740273685712,0.068322,2770.4,2770.1,0.72956765]
[1740273687176,3.60984,2770.2,2770.1,0.72956765]
[1740273687401,4.39304,2770.2,2770.1,0.72956765]
[1740273687586,4.46118159,2770.2,2769.8,0.257]
[1740273688090,4.46118159,2770.2,2769.8,0.9952509]
[1740273688615,4.46118159,2770.2,2769.9,0.33773609]
[1740273689111,0.85134159,2770.2,2769.9,0.33773609]
[1740273690323,3.60999,2770.1,2769.8,0.7382509]
[1740273690608,3.61011,2770.0,2769.8,0.7382509]
[1740273690810,4.39343,2769.9,2769.8,0.7382509]
[1740273691014,4.4613251,2769.9,2769.8,0.7382509]
[1740273691319,0.8510951,2769.9,2769.8,0.7382509]
[1740273696904,4.4613251,2769.9,2769.8,0.7382509]
[1740273699716,3.61036,2769.8,2769.4,0.257]
[1740273700101,0.8124,2769.6,2769.4,0.257]
[1740273700312,4.42303,2769.6,2769.3,0.257]
[1740273700511,0.06716564,2769.5,2769.3,0.257]
[1740273700707,0.06716564,2769.5,2769.3,3.86795]
[1740273701031,0.06716564,2769.5,2769.3,4.255245]
[1740273701827,0.06716564,2769.5,2769.3,0.644295]
[1740273702037,0.06716564,2769.5,2769.4,3.61089]
[1740273702216,0.06716564,2769.5,2769.2,0.72846771]
[1740273702531,0.06716564,2769.5,2769.1,0.262]
[1740273702532,4.49041788,2769.4,2769.1,0.262]
[1740273703029,4.49041788,2769.4,2769.1,0.97781443]
[1740273703728,0.87948788,2769.4,2769.1,2.14816382]
[1740273703902,0.87948788,2769.4,2769.1,1.89116382]
[1740273704095,0.87948788,2769.4,2769.1,2.14816382]
[1740273704951,4.49038788,2769.4,2769.1,0.262]
[1740273705434,0.87948788,2769.4,2769.1,0.262]
[1740273705636,4.49040788,2769.4,2769.1,0.262]
[1740273705935,0.87948788,2769.4,2769.1,0.262]
[1740273707936,4.49038788,2769.4,2769.1,0.262]
[1740273708647,3.61106,2769.3,2769.1,0.005]
[1740273708934,0.06670253,2769.2,2769.1,0.005]
[1740273709236,4.4233,2769.4,2769.1,0.005]
[1740273709538,0.0667803,2769.3,2769.1,0.005]
[1740273710814,3.61115,2769.2,2769.1,0.005]
[1740273711198,3.67785253,2769.2,2769.1,0.005]
[1740273712819,0.06670253,2769.2,2769.1,0.005]
[1740273713135,3.61103,2769.3,2769.1,0.005]
[1740273713334,0.06635532,2769.2,2769.1,0.005]
[1740273713709,0.8124,2769.4,2769.1,0.005]
[1740273713914,0.06635532,2769.2,2769.1,0.005]
[1740273714115,3.61102,2769.3,2769.1,0.005]
[1740273714316,0.06635532,2769.2,2769.1,0.005]
[1740273714516,3.61102,2769.3,2769.1,0.005]
[1740273714707,0.06635532,2769.2,2769.1,0.005]
[1740273715037,3.61102,2769.3,2769.1,0.005]
[1740273715336,0.06635532,2769.2,2769.1,0.005]
[1740273715517,0.8124,2769.4,2769.1,0.005]
[1740273715717,0.06635532,2769.2,2769.1,0.005]
[1740273715918,6.0524,2769.4,2769.1,0.005]
[1740273716122,5.24,2769.4,2769.3,3.61102]
[1740273717515,5.24,2769.4,2769.2,3.61109]
[1740273718139,0.06606521,2769.3,2769.2,3.61107]
[1740273718303,0.06606521,2769.3,2769.2,3.86807]
[1740273718513,0.06606521,2769.3,2769.2,4.69779421]
[1740273719004,0.06606521,2769.3,2769.2,4.93099421]
[1740273719207,5.24,2769.4,2769.3,3.61102]
[1740273721871,0.06338331,2769.4,2769.3,3.61102]
[1740273722042,8.85042,2769.8,2769.3,3.61102]
[1740273722237,0.06213007,2769.7,2769.3,3.61102]
[1740273722474,0.06213007,2769.7,2769.2,4.10127]
[1740273722640,3.61049,2769.7,2769.2,0.4902]
[1740273722842,0.06205233,2769.6,2769.2,0.4902]
[1740273723378,0.06205233,2769.6,2769.2,4.10133]
[1740273725443,0.06205233,2769.6,2769.2,5.24824381]
[1740273726038,0.06205233,2769.6,2769.2,5.01504381]
[1740273726243,3.61102,2769.3,2769.1,0.005]
[1740273726439,3.61102,2769.3,2769.2,0.257]
[1740273726845,4.44252,2769.5,2769.2,0.257]
[1740273727078,3.61096,2769.4,2769.2,0.257]
[1740273727478,4.44252,2769.5,2769.2,0.257]
[1740273729276,4.99223,2769.7,2769.2,3.86807]
[1740273730283,0.06205233,2769.6,2769.2,3.86807]
[1740273731078,3.67269233,2769.6,2769.2,0.257]
[1740273731307,3.61082,2769.5,2769.2,0.257]
[1740273731509,0.06037349,2769.5,2769.2,0.257]
[1740273733976,0.06037349,2769.5,2769.2,3.86807]
[1740273734176,0.8317,2769.7,2769.3,3.61093]
[1740273734472,0.8317,2769.7,2769.2,7.71231]
[1740273734675,0.05916989,2769.6,2769.3,3.61101]
[1740273737530,0.05916989,2769.6,2769.3,7.22196]
[1740273737710,5.24,2770.0,2769.7,3.61045]
[1740273738307,5.24,2770.0,2769.8,3.6103]
[1740273739315,5.24,2770.0,2769.7,3.61045]
[1740273740117,5.24,2770.0,2769.7,4.31917547]
[1740273740895,5.24,2770.0,2769.7,0.70872547]
[1740273741497,0.05757739,2769.9,2769.7,0.70872547]
[1740273748841,4.47368739,2769.9,2769.5,0.2332]
[1740273749842,3.6104,2769.8,2769.5,0.2332]
[1740273750138,0.05687903,2769.7,2769.5,0.2332]
[1740273750344,3.61057,2769.7,2769.6,0.257]
[1740273750921,3.61076,2769.5,2769.4,0.70802346]
[1740273751140,3.61076,2769.5,2769.4,0.96502346]
[1740273752036,4.44076,2769.5,2769.4,0.96502346]
[1740273752240,4.49748353,2769.5,2769.4,0.96502346]
[1740273754629,0.88672353,2769.5,2769.4,0.96502346]
[1740273754823,0.05672353,2769.5,2769.4,0.96502346]
[1740273755343,4.44058,2769.7,2769.4,0.96502346]
[1740273755547,0.05443945,2769.5,2769.4,0.96502346]
[1740273755723,0.83,2769.7,2769.4,0.96502346]
[1740273755929,0.05427077,2769.5,2769.4,0.96502346]
[1740273756125,4.44054,2769.7,2769.4,0.96502346]
[1740273756428,0.05427077,2769.5,2769.4,0.96502346]
[1740273756626,4.44054,2769.7,2769.4,0.96502346]
[1740273757098,0.05434852,2769.6,2769.4,0.96502346]
[1740273759145,0.05434852,2769.6,2769.4,1.19822346]
[1740273759446,3.61036,2769.8,2769.4,4.80910346]
[1740273759903,0.05442627,2769.7,2769.4,4.80910346]
[1740273760104,3.61036,2769.8,2769.4,4.80910346]
[1740273760307,0.05434852,2769.6,2769.4,4.80910346]
[1740273760606,3.61036,2769.8,2769.4,4.80910346]
[1740273760822,0.05427077,2769.5,2769.4,4.80910346]
[1740273761371,3.61036,2769.8,2769.4,4.80910346]
[1740273761516,0.05427077,2769.5,2769.4,4.80910346]
[1740273761715,3.61036,2769.8,2769.4,4.80910346]
[1740273761958,0.05427077,2769.5,2769.4,0.257]
[1740273762156,3.61096,2769.4,2769.3,0.257]
[1740273762657,3.6651343,2769.4,2769.3,0.257]
[1740273762827,3.61107,2769.3,2769.1,0.005]
[1740273763214,0.05401877,2769.2,2769.1,0.005]
[1740273763557,3.61096,2769.4,2769.1,0.005]
[1740273763717,0.05401877,2769.2,2769.1,0.005]